lending/lending_fUSD_20250425
["ID","MTS","AMOUNT","RATE_DAILY","PERIOD"]
[358941862,1745573443097,-579.23977796,0.00019999,2]
[358941863,1745573443106,-500.0,0.00019999,2]
[358941864,1745573443115,-500.0,0.00019999,2]
[358941865,1745573443129,-300.0,0.00019999,2]
[358941866,1745573443139,-628.0,0.0002,2]
[358941867,1745573443149,-725544.48598127,0.0002,2]
[358941868,1745573443186,-12265.62736249,0.0002,2]
[358941919,1745573446165,-261.81012156,0.0002,2]
[358941979,1745573748180,1003.0,0.00037808,60]
[358941980,1745573748235,250.0,0.00017,2]
[358941985,1745574602674,2000.0,0.0002,4]
[358941989,1745574631937,-419.91705816,0.00019799,2]
[358941991,1745574632150,-349.499375,0.00019799,2]
[358942382,1745574637965,-1223.94506794,0.00019799,2]
[358942383,1745574637975,-300.0,0.00019899,2]
[358942384,1745574637985,-1554.7964238,0.000199,2]
[358942385,1745574637994,-498.88451547,0.000199,2]
[358942386,1745574638004,-4533.49227374,0.000199,2]
[358942387,1745574638013,-559.60426044,0.000199,2]
[358942388,1745574638023,-2434.3538211,0.00019986,2]
[358942389,1745574638034,-50276.3247251,0.00019986,2]
[358942390,1745574638044,-2627.8960838,0.00019986,2]
[358942391,1745574638055,-2388.2659344,0.00019986,2]
[358942392,1745574638065,-283.755,0.0001999,2]
[358942393,1745574638075,-220.85383352,0.0001999,2]
[358942394,1745574638085,-236.13239533,0.00019999,2]
[358942395,1745574638095,-165.72676057,0.00019999,2]
[358942396,1745574638104,-642.0,0.0002,2]
[358942397,1745574638114,-521634.52699941,0.0002,2]
[358942398,1745574638127,-254712.17583007,0.0002,2]
[358942399,1745574638137,-97022.58102417,0.0002,2]
[358942400,1745574638146,-582.23,0.0002,2]
[358942401,1745574638155,-2142001.53814576,0.0002,2]
[358942407,1745574640394,-200.03047626,0.000199,2]
[358942408,1745574640406,-1652.45485929,0.0002,2]
[358942420,1745574724533,1000.0,0.00037808,60]
[358942421,1745574754489,20000.0,0.00037808,60]
[358942423,1745574819973,8888.0,0.00037808,60]
[358942424,1745574925648,1808.8248996,0.00019,2]
[358942428,1745575208879,650.0,0.00037808,60]
[358942429,1745575226233,200.48,0.00019103,2]
[358942430,1745575227314,222.32940498,0.00037808,60]
[358942431,1745575525610,1000.0,0.00037808,60]
[358942432,1745575538502,1000.0,0.00037808,60]
[358942433,1745575547446,1000.0,0.00037808,60]
[358942434,1745575550583,250.0,0.00017,2]
[358942435,1745575553769,1000.0,0.00037808,60]
[358942436,1745575579366,1000.0,0.00037808,60]
[358942440,1745575689906,9958.4,0.00037808,60]
[358942445,1745575832378,-629.2309632,0.00019366,2]
[358942455,1745575838147,-10.6990368,0.00019366,2]
[358942457,1745575838158,-447.0809632,0.00019726,2]
[358942458,1745575838201,-52.9190368,0.00019726,2]
[358942459,1745575838212,-1594.6892008,0.00019799,2]
[358942461,1745575838222,-500.0,0.00019808,2]
[358942462,1745575838232,-500.0,0.00019863,2]
[358942463,1745575838242,-1000.0,0.000199,2]
[358942464,1745575838251,-395.21665591,0.000199,2]
[358942690,1745575840810,-1004.10012551,0.000199,2]
[358942692,1745575840820,-448.99606386,0.000199,2]
[358942694,1745575840830,-46.90381063,0.000199,2]
[358942696,1745575840841,-470.23,0.000199,2]
[358942940,1745575843269,-939.80586,0.000199,2]
[358942943,1745575843282,-2287.20629333,0.000199,2]
[358942965,1745575843481,-1227.98738991,0.000199,2]
[358942967,1745575843493,-480.5637353,0.000199,2]
[358942969,1745575843505,-541.54300055,0.000199,2]
[358943273,1745575846510,-2339.32545998,0.000199,2]
[358943290,1745575846668,-27866.5969503,0.000199,2]
[358943292,1745575846678,-1000.0,0.000199,2]
[358943294,1745575846688,-2500.0,0.000199,2]
[358943296,1745575846698,-17313.1009,0.000199,2]
[358943299,1745575846708,-3019.4303,0.000199,2]
[358943301,1745575846718,-500.0,0.000199,2]
[358943303,1745575846728,-1000.0,0.000199,2]
[358943305,1745575846739,-463.45233437,0.00019973,2]
[358943307,1745575846749,-500.0,0.00019973,2]
[358943309,1745575846759,-504.58863235,0.00019973,2]
[358943311,1745575846769,-345.1840541,0.00019973,2]
[358943313,1745575846779,-625.63753144,0.00019973,2]
[358943315,1745575846790,-1141.1885869,0.00019986,2]
[358943317,1745575846800,-3396.1355336,0.00019986,2]
[358943319,1745575846810,-612.4778974,0.00019986,2]
[358943321,1745575846820,-1011.3019537,0.00019986,2]
[358943324,1745575846831,-25477.3976828,0.00019986,2]
[358943326,1745575846841,-204.8319863,0.00019986,2]
[358943328,1745575846851,-207.4,0.00019988,2]
[358943330,1745575846860,-227.004,0.00019999,2]
[358943332,1745575846870,-248376.42067726,0.0002,2]
[358943349,1745575847026,-2291.98376,0.0002,2]
[358944393,1745575995753,450.74055634,0.00037808,60]
[358944394,1745576158303,301.0,0.00037808,60]
[358944395,1745576307143,500.0,0.00019,7]
[358944396,1745576307894,500.0,0.00019,7]
[358944397,1745576308642,462.73,0.00019,7]
[358944398,1745576320489,250.55325785,0.00018852,2]
[358944399,1745576372697,500.0,0.00019,7]
[358944400,1745576373465,500.0,0.00019,7]
[358944401,1745576374370,500.0,0.00019,7]
[358944402,1745576375016,500.0,0.00019,7]
[358944403,1745576375783,500.0,0.00019,7]
[358944404,1745576376558,500.0,0.00019,7]
[358944405,1745576376669,607.93,0.00017666,2]
[358944406,1745576377325,500.0,0.00019,7]
[358944407,1745576378106,500.0,0.00019,7]
[358944408,1745576379200,500.0,0.00019,7]
[358944409,1745576379701,500.0,0.00019,7]
[358944410,1745576380469,500.0,0.00019,7]
[358944411,1745576381244,500.0,0.00019,7]
[358944412,1745576382340,500.0,0.00019,7]
[358944413,1745576382798,500.0,0.00019,7]
[358944414,1745576383564,500.0,0.00019,7]
[358944415,1745576384323,500.0,0.00019,7]
[358944416,1745576385106,500.0,0.00019,7]
[358944417,1745576397268,150.042519,0.00037808,120]
[358944418,1745576412369,150.042519,0.00037808,120]
[358944419,1745576450888,500.0,0.00019,7]
[358944420,1745576452946,561.8,0.00019,7]
[358944421,1745576457285,615.22858254,0.00037808,60]
[358944422,1745576518748,500.0,0.00019,7]
[358944423,1745576519023,500.0,0.00019,7]
[358944424,1745576626553,150.0,0.00019741,7]
[358944425,1745576710126,1626.00840606,0.000154,2]
[358944427,1745576767135,1775.60042976,8e-05,2]
[358944429,1745576790416,1976.08197055,0.00015,2]
[358944436,1745576923944,179.47099439,0.00013368,2]
[358944518,1745576971824,198.37434361,0.00014925,2]
[358944521,1745577002432,2000.0,0.0002,4]
[358944522,1745577026670,1628.91,0.00018884,2]
[358944875,1745577038434,-200.0,0.00019498,2]
[358944876,1745577038445,-200.0,0.00019592,2]
[358944877,1745577038455,-150.0,0.00019727,2]
[358944878,1745577038464,-150.0,0.0001973,2]
[358944879,1745577038474,-150.0,0.00019733,2]
[358944880,1745577038485,-150.0,0.00019735,2]
[358944881,1745577038494,-150.0,0.00019735,2]
[358944882,1745577038504,-1642.68,0.00019741,2]
[358944883,1745577038514,-150.0,0.00019741,2]
[358944884,1745577038523,-150.0,0.00019743,2]
[358944885,1745577038533,-150.0,0.00019749,2]
[358944886,1745577038544,-150.0,0.00019752,2]
[358944887,1745577038553,-150.0,0.00019752,2]
[358944888,1745577038563,-150.0,0.00019757,2]
[358944889,1745577038572,-150.0,0.00019757,2]
[358944890,1745577038581,-150.0,0.00019762,2]
[358944891,1745577038591,-150.0,0.00019775,2]
[358944892,1745577038601,-150.0,0.00019775,2]
[358944893,1745577038610,-302.1877128,0.00019782,2]
[358944894,1745577038619,-150.0,0.00019782,2]
[358944895,1745577038628,-150.0,0.00019783,2]
[358944896,1745577038638,-150.0,0.00019789,2]
[358944898,1745577038648,-150.0,0.00019793,2]
[358944900,1745577038657,-150.0,0.00019794,2]
[358944902,1745577038667,-150.0,0.00019794,2]
[358944904,1745577038676,-150.0,0.00019794,2]
[358944906,1745577038686,-150.0,0.00019798,2]
[358944908,1745577038695,-1275.7513607,0.00019799,2]
[358944910,1745577038705,-150.0,0.00019799,2]
[358944912,1745577038714,-150.0,0.00019807,2]
[358944914,1745577038723,-150.0,0.00019809,2]
[358944916,1745577038736,-150.0,0.00019813,2]
[358944918,1745577038745,-150.0,0.0001982,2]
[358944920,1745577038755,-150.0,0.0001982,2]
[358944922,1745577038764,-150.0,0.00019821,2]
[358944924,1745577038773,-150.0,0.00019821,2]
[358944926,1745577038782,-150.0,0.00019821,2]
[358944928,1745577038791,-150.0,0.00019823,2]
[358944930,1745577038800,-150.0,0.00019831,2]
[358944932,1745577038810,-150.0,0.00019832,2]
[358944934,1745577038820,-150.0,0.00019837,2]
[358944936,1745577038830,-150.0,0.00019838,2]
[358944938,1745577038839,-150.0,0.0001984,2]
[358944941,1745577038850,-150.0,0.00019842,2]
[358944944,1745577038860,-150.0,0.00019852,2]
[358944947,1745577038869,-150.0,0.00019855,2]
[358944950,1745577038879,-150.0,0.00019858,2]
[358944952,1745577038889,-150.0,0.00019858,2]
[358944954,1745577038899,-150.0,0.00019859,2]
[358944956,1745577038910,-150.0,0.00019861,2]
[358944958,1745577038919,-150.0,0.00019861,2]
[358944960,1745577038929,-150.0,0.00019861,2]
[358944962,1745577038939,-150.0,0.00019866,2]
[358944964,1745577038949,-150.0,0.0001987,2]
[358944966,1745577038959,-150.0,0.00019873,2]
[358944968,1745577038968,-151.61,0.0001988,2]
[358944970,1745577038978,-150.0,0.00019881,2]
[358944972,1745577038990,-150.0,0.00019887,2]
[358944974,1745577039000,-150.0,0.00019888,2]
[358944977,1745577039010,-150.0,0.00019892,2]
[358944979,1745577039020,-150.0,0.00019895,2]
[358944981,1745577039030,-150.0,0.00019895,2]
[358944983,1745577039040,-17756.3177,0.000199,2]
[358944985,1745577039050,-6468.1138,0.000199,2]
[358944987,1745577039060,-500.0,0.000199,2]
[358944989,1745577039070,-533.7464,0.000199,2]
[358944991,1745577039079,-1000.0,0.000199,2]
[358944993,1745577039089,-404.09645751,0.000199,2]
[358944994,1745577039098,-2500.0,0.000199,2]
[358944996,1745577039108,-150.0,0.00019902,2]
[358944999,1745577039118,-150.0,0.00019904,2]
[358945001,1745577039128,-3022.3281825,0.00019913,2]
[358945003,1745577039138,-150.0,0.00019918,2]
[358945005,1745577039149,-150.0,0.00019921,2]
[358945007,1745577039160,-150.0,0.00019927,2]
[358945009,1745577039170,-150.0,0.00019927,2]
[358945010,1745577039179,-150.0,0.0001993,2]
[358945012,1745577039189,-607.93,0.0001993,2]
[358945014,1745577039199,-150.0,0.00019931,2]
[358945016,1745577039210,-150.0,0.00019938,2]
[358945017,1745577039221,-150.0,0.00019939,2]
[358945018,1745577039230,-150.0,0.00019943,2]
[358945019,1745577039242,-150.0,0.00019943,2]
[358945020,1745577039252,-150.0,0.00019947,2]
[358945021,1745577039261,-150.0,0.00019951,2]
[358945022,1745577039271,-150.0,0.00019953,2]
[358945023,1745577039281,-150.0,0.00019963,2]
[358945024,1745577039290,-150.0,0.00019965,2]
[358945025,1745577039300,-150.0,0.00019967,2]
[358945026,1745577039310,-507.10011547,0.00019973,2]
[358945027,1745577039320,-500.0,0.00019973,2]
[358945028,1745577039329,-150.0,0.00019974,2]
[358945029,1745577039339,-150.0,0.00019981,2]
[358945030,1745577039349,-4327.2638232,0.00019986,2]
[358945031,1745577039359,-1356.2873751,0.00019986,2]
[358945032,1745577039369,-18191.0214666,0.00019986,2]
[358945033,1745577039379,-4918.4436304,0.00019986,2]
[358945034,1745577039395,-207.4,0.00019988,2]
[358945035,1745577039406,-182.06222703,0.00019989,2]
[358945036,1745577039416,-263.83720918,0.0001999,2]
[358945037,1745577039430,-150.0,0.00019991,2]
[358945038,1745577039440,-150.0,0.00019996,2]
[358945039,1745577039450,-181.603,0.00019999,2]
[358945040,1745577039460,-500.0,0.00019999,2]
[358945041,1745577039470,-500.0,0.00019999,2]
[358945042,1745577039480,-500.0,0.00019999,2]
[358945043,1745577039492,-500.0,0.00019999,2]
[358945044,1745577039503,-500.0,0.00019999,2]
[358945045,1745577039513,-265.46784458,0.00019999,2]
[358945046,1745577039523,-403148.16168369,0.0002,2]
[358945047,1745577039537,-352445.47110484,0.0002,2]
[358945048,1745577039547,-5530.0,0.0002,2]
[358945049,1745577039557,-18797.17116395,0.0002,2]
[358945050,1745577039566,-158.0,0.0002,2]
[358945051,1745577039576,-261.42701269,0.0002,2]
[358945052,1745577039586,-400.0776,0.0002,2]
[358945053,1745577039596,-2116726.37811852,0.0002,2]
[358945065,1745577040718,-446.13499999,0.0002,2]
[358945230,1745577046338,-935.812,0.000199,2]
[358945316,1745577352795,250.0,0.00017,2]
[358945319,1745577466975,500.0,0.00035616,120]
[358945320,1745577467207,500.0,0.0003589,120]
[358945321,1745577467459,500.0,0.00036164,120]
[358945322,1745577467690,500.0,0.00036438,120]
[358945323,1745577467929,500.0,0.00036712,120]
[358945324,1745577468167,551.03840177,0.00036986,120]
[358945325,1745577554082,547.13,0.00018898,2]
[358945327,1745577808062,-150.0,0.00019729,2]
[358945328,1745577808089,-1020.6010885,0.00019799,2]
[358945329,1745577808114,-150.0,0.00019831,2]
[358945330,1745577808138,-150.0,0.00019831,2]
[358945331,1745577808162,-500.0,0.000199,2]
[358945332,1745577808186,-939.8059,0.000199,2]
[358945333,1745577808211,-363.68681175,0.000199,2]
[358945334,1745577808236,-1367.60727653,0.000199,2]
[358945335,1745577808260,-1000.0,0.000199,2]
[358945336,1745577808286,-150.0,0.00019905,2]
[358945337,1745577808310,-150.0,0.00019978,2]
[358945338,1745577808334,-3989.4595352,0.00019986,2]
[358945339,1745577808359,-748.0032835,0.00019986,2]
[358945340,1745577808381,-1569.65010452,0.00019986,2]
[358945341,1745577812418,170.36,0.00024834,120]
[358945356,1745578231542,-816.4808708,0.00019799,2]
[358945357,1745578231552,-200.0,0.000198,2]
[358945358,1745578231561,-174.68440101,0.000198,2]
[358945359,1745578231570,-407.73472818,0.00019899,2]
[358945360,1745578231581,-492.26527182,0.00019899,2]
[358945361,1745578231591,-300.0,0.00019899,2]
[358945362,1745578231601,-500.0,0.000199,2]
[358945363,1745578231611,-327.31813062,0.000199,2]
[358945364,1745578231620,-1649.4479,0.000199,2]
[358945365,1745578231629,-763.3897,0.000199,2]
[358945366,1745578231638,-1230.84654885,0.000199,2]
[358945367,1745578231648,-158.0,0.00019966,2]
[358945368,1745578231658,-261.42701269,0.00019966,2]
[358945369,1745578231668,-35133.1267879,0.00019986,2]
[358945370,1745578231677,-543.6642306,0.00019986,2]
[358945371,1745578231686,-3179.8652135,0.00019986,2]
[358945372,1745578231696,-1442.2079478,0.00019986,2]
[358945373,1745578231705,-181.603,0.00019988,2]
[358945374,1745578231715,-207.4,0.00019988,2]
[358945375,1745578231724,-186.69497425,0.00019999,2]
[358945376,1745578231733,-500.0,0.00019999,2]
[358945377,1745578231743,-500.0,0.00019999,2]
[358945378,1745578231752,-500.0,0.00019999,2]
[358945379,1745578231761,-500.0,0.00019999,2]
[358945380,1745578231771,-435.8274912,0.00019999,2]
[358945381,1745578231780,-2886.78,0.00019999,2]
[358945382,1745578231789,-711.0,0.0002,2]
[358945383,1745578231798,-43326.84236257,0.0002,2]
[358945384,1745578231820,-7888.276675,0.0002,2]
[358945441,1745578237651,-643.0,0.0002,2]
[358945442,1745578237662,-402505.16168369,0.0002,2]
[358945443,1745578237674,-160634.00362911,0.0002,2]
[358945444,1745578237685,-216958.14325237,0.0002,2]
[358945532,1745578242753,-7682.282222,0.0002,2]
[358945533,1745578242764,-8881.10337,0.0002,2]
[358945558,1745578245553,-612.96000239,0.0002,2]
[358945559,1745578245565,-1404.795,0.0002,2]
[358946022,1745578296584,1646.60701669,0.00037808,120]
[358946024,1745578447601,1451.845816,7.945e-05,2]
[358946025,1745578680798,-653.1846967,0.00019799,2]
[358946026,1745578680823,-227.0,0.00019899,2]
[358946027,1745578680845,-500.0,0.000199,2]
[358946028,1745578680866,-619.8153033,0.000199,2]
[358946029,1745578690798,-2000.0,0.000199,2]
[358946030,1745578700568,-2000.0,0.000199,2]
[358946031,1745578710938,-2000.0,0.000199,2]
[358946032,1745578719572,-522.5477573,0.00019799,2]
[358946033,1745578719594,-1477.4522427,0.000199,2]
[358946034,1745578728292,-2000.0,0.000199,2]
[358946035,1745578736913,-2000.0,0.000199,2]
[358946036,1745578744599,-2000.0,0.000199,2]
[358946037,1745578752594,-2000.0,0.000199,2]
[358946038,1745578759007,-2000.0,0.000199,2]
[358946039,1745578765824,-418.0382059,0.00019799,2]
[358946040,1745578765850,-1581.9617941,0.000199,2]
[358946041,1745578774104,-2000.0,0.000199,2]
[358946042,1745578781301,-2000.0,0.000199,2]
[358946043,1745578787932,-2000.0,0.000199,2]
[358946044,1745578795108,-2000.0,0.000199,2]
[358946046,1745579060975,281.0,0.00016712,2]
[358946047,1745579155142,250.0,0.00017,2]
[358946053,1745579280548,4003.54794671,0.00037808,60]
[358946054,1745579429805,152.7,0.00017685,2]
[358946065,1745579431749,-709.95288138,0.00019699,2]
[358946066,1745579431805,-370.02825862,0.00019699,2]
[358946067,1745579431816,-334.4305647,0.00019799,2]
[358946068,1745579431826,-735.23249726,0.00019871,2]
[358946069,1745579431835,-263.44113176,0.000199,2]
[358946070,1745579431866,-348.84459878,0.000199,2]
[358946071,1745579432017,-4950.77808699,0.000199,2]
[358946134,1745579437866,-724.42531493,0.000199,2]
[358946135,1745579437881,-2021.60204838,0.000199,2]
[358946136,1745579437894,-4947.01457906,0.000199,2]
[358946137,1745579437904,-500.0,0.000199,2]
[358946138,1745579437914,-1206.52946122,0.000199,2]
[358946139,1745579437924,-2500.0,0.000199,2]
[358946140,1745579437934,-1454.5273075,0.00019986,2]
[358946141,1745579437943,-383.2623229,0.00019986,2]
[358946142,1745579437956,-787.1550764,0.00019986,2]
[358946143,1745579437967,-1016.7010025,0.00019986,2]
[358946144,1745579437981,-18548.81025042,0.00019986,2]
[358946145,1745579438112,-25220.45410208,0.00019986,2]
[358946146,1745579438122,-181.603,0.00019988,2]
[358946147,1745579438132,-207.4,0.00019988,2]
[358946148,1745579438142,-500.0,0.00019999,2]
[358946149,1745579438152,-500.0,0.00019999,2]
[358946150,1745579438163,-500.0,0.00019999,2]
[358946151,1745579438173,-205.07924384,0.00019999,2]
[358946153,1745579438183,-263569.00759421,0.0002,2]
[358946155,1745579438193,-18797.17116395,0.0002,2]
[358946157,1745579438202,-150.0,0.0002,2]
[358946159,1745579438212,-3526.33287466,0.0002,2]
[358946161,1745579438222,-186.0,0.00020031,2]
[358946163,1745579438232,-519.77,0.00020194,2]
[358946165,1745579438242,-779.58,0.00020358,2]
[358946167,1745579438251,-5412.65579309,0.00020707,2]
[358946169,1745579438261,-165.0,0.00020777,2]
[358946171,1745579438271,-215.0738,0.00021357,2]
[358946173,1745579438281,-1358.89812905,0.000214,3]
[358946175,1745579438291,-208.0,0.00021497,2]
[358946177,1745579438301,-150.0,0.000217,2]
[358946179,1745579438312,-1206.52946119,0.00021726,2]
[358946181,1745579438322,-348.40260167,0.00021754,2]
[358946182,1745579438332,-250.0,0.00021779,2]
[358946184,1745579438342,-200.0,0.00021779,2]
[358946185,1745579438352,-250.0,0.00021779,2]
[358946187,1745579438363,-200.0,0.00021779,2]
[358946190,1745579438373,-1358.89812877,0.00021969,3]
[358946192,1745579438384,-764.30877131,0.00022,7]
[358946194,1745579438394,-1000.0,0.00022112,2]
[358946195,1745579438405,-937.99,0.00022112,2]
[358946196,1745579438414,-1985.12,0.00022112,2]
[358946197,1745579438425,-150.0,0.00022116,7]
[358946198,1745579438435,-250.0,0.00022225,2]
[358946199,1745579438445,-519.77,0.00022458,2]
[358946200,1745579438454,-150.99,0.00022562,2]
[358946201,1745579438464,-6947.74,0.00022562,2]
[358946202,1745579438474,-223.0315306,0.00022726,2]
[358946203,1745579438483,-166.66,0.00022775,2]
[358946204,1745579438493,-1358.89812877,0.00023038,4]
[358946205,1745579438504,-1206.52946119,0.00023553,2]
[358946206,1745579438514,-348.40260167,0.00023577,2]
[358946207,1745579438523,-35416.85049543,0.00023809,2]
[358946212,1745579440069,-13345.05950457,0.00023809,2]
[358946213,1745579440079,-198.51,0.00023836,2]
[358946214,1745579440090,-6190.0,0.00023898,2]
[358946215,1745579440100,-879.601,0.00023898,2]
[358946216,1745579440111,-5975.6623702,0.0002409,2]
[358946217,1745579440121,-231.28369723,0.00024095,2]
[358946218,1745579440131,-1358.89812877,0.00024107,5]
[358946219,1745579440142,-6095.51325527,0.00024223,2]
[358946220,1745579440239,-79.81674473,0.00024223,2]
[358946221,1745579440250,-150.0,0.00024286,2]
[358946222,1745579440260,-1096.27083182,0.00024286,2]
[358946223,1745579440333,-785.02309482,0.00024286,2]
[358946224,1745579442009,-131.77607336,0.00024286,2]
[358946225,1745579442020,-225.34392665,0.00024312,2]
[358946238,1745579442967,-276.79516028,0.00024312,2]
[358946239,1745579443014,-2252.21091307,0.00024312,2]
[358946240,1745579443023,-184.55,0.00024352,2]
[358946241,1745579443033,-166.66,0.00024655,2]
[358946242,1745579443043,-519.77,0.00024722,2]
[358946243,1745579443054,-630.98244693,0.000248,2]
[358946244,1745579443065,-5343.47847408,0.000248,2]
[358946245,1745579443078,-464.264,0.000248,2]
[358946264,1745579445958,-2174.4806717,0.000248,2]
[358946265,1745579446012,-330.27,0.000248,2]
[358946277,1745580050024,324000.0,0.00037,60]
[358946279,1745580173135,157.0,0.00025,120]
[358946280,1745580336716,3070.80644895,9e-05,2]
[358946340,1745580602216,614.86302211,0.0002,4]
[358946344,1745580631905,-426.0,0.00019899,2]
[358946346,1745580631916,-470.23,0.000199,2]
[358946348,1745580631927,-500.0,0.000199,2]
[358946350,1745580631937,-275.53259068,0.000199,2]
[358946351,1745580631947,-261.97600608,0.000199,2]
[358946352,1745580631958,-571.58687196,0.000199,2]
[358946353,1745580631970,-14.35347775,0.000199,2]
[358946354,1745580631980,-727.22778263,0.000199,2]
[358946355,1745580631989,-727.22778262,0.000199,2]
[358946356,1745580631999,-299.0,0.00019918,2]
[358946357,1745580632010,-248.49915584,0.00019949,2]
[358946358,1745580632118,-51.50084416,0.00019949,2]
[358946359,1745580632128,-250.0,0.0001995,2]
[358946360,1745580632137,-200.0,0.0001995,2]
[358946361,1745580632147,-500.0,0.00019999,2]
[358946362,1745580632156,-787.0,0.00019999,2]
[358946363,1745580632165,-500.0,0.00019999,2]
[358946365,1745580632175,-500.0,0.00019999,2]
[358946367,1745580632185,-424.30371805,0.00019999,2]
[358946368,1745580632195,-480.53324458,0.00019999,2]
[358946369,1745580632214,-19.46675542,0.00019999,2]
[358946370,1745580632224,-650.46273719,0.0002,2]
[358946403,1745580638441,-1104.53445207,0.000199,2]
[358946406,1745580638452,-287.116,0.000199,2]
[358946408,1745580638463,-546.42,0.000199,2]
[358946410,1745580638475,-768.63239982,0.000199,2]
[358946412,1745580638487,-2108.60423574,0.000199,2]
[358946416,1745580638513,-1008.15204628,0.000199,2]
[358946419,1745580638529,-935.59,0.000199,2]
[358946422,1745580638541,-2773.38623147,0.000199,2]
[358946424,1745580638550,-4701.95339313,0.0002,2]
[358946426,1745580638561,-22458.90485573,0.0002,2]
[358946430,1745580638586,-33732.60953279,0.0002,2]
[358946432,1745580638597,-1504701.34097866,0.0002,2]
[358946434,1745580638609,-2351170.88589232,0.0002,2]
[358946436,1745580638618,-150.0,0.0002,2]
[358946438,1745580638628,-3526.33287466,0.0002,2]
[358946440,1745580638637,-6653.0,0.0002,2]
[358946443,1745580638648,-105503.7698871,0.0002,2]
[358946445,1745580638663,-6132.246,0.0002,2]
[358946489,1745580640384,-657.70703532,0.0002,2]
[358946490,1745580640408,-267.83381217,0.0002,2]
[358946491,1745580640420,-941.56,0.0002,2]
[358946686,1745580645862,-4899.75366782,0.0002,2]
[358946687,1745580645973,-2503.47664538,0.0002,2]
[358946688,1745580645987,-368.91631683,0.0002,2]
[358946689,1745580645999,-3405.55913296,0.0002,2]
[358946690,1745580646012,-5861.25881468,0.0002,2]
[358946692,1745580646394,-18865.91245426,0.0002,2]
[358946699,1745580667442,1256.0,0.00019105,2]
[358946708,1745580957443,250.0,0.00017,2]
[358946709,1745580994970,-2000.0,0.000198,2]
[358946713,1745581004681,-1477.9908,0.000199,2]
[358946714,1745581004705,-522.0092,0.00019999,2]
[358946715,1745581013283,-377.9908,0.00019999,2]
[358946716,1745581013305,-300.0,0.00019999,2]
[358946717,1745581013328,-500.0,0.00019999,2]
[358946718,1745581013351,-347.01260263,0.00019999,2]
[358946719,1745581013374,-474.99659737,0.00019999,2]
[358946720,1745581021989,-1593.44462,0.00019899,2]
[358946721,1745581022015,-25.00340263,0.00019999,2]
[358946722,1745581022040,-381.55197737,0.0002,2]
[358946723,1745581031757,-207.4,0.00019988,2]
[358946724,1745581031785,-1792.6,0.0002,2]
[358946725,1745581039501,-2000.0,0.0002,2]
[358946726,1745581046804,-2000.0,0.0002,2]
[358946727,1745581054054,-2000.0,0.0002,2]
[358946728,1745581060400,-2000.0,0.0002,2]
[358946729,1745581068682,-2000.0,0.0002,2]
[358946730,1745581075072,-2000.0,0.0002,2]
[358946731,1745581080856,-348.40260172,0.000199,2]
[358946732,1745581080883,-1651.59739828,0.0002,2]
[358946733,1745581088366,-300.0,0.00019999,2]
[358946734,1745581088391,-1700.0,0.0002,2]
[358946735,1745581095448,-2000.0,0.0002,2]
[358946736,1745581101672,-2000.0,0.0002,2]
[358946740,1745581207532,799.378959,7.945e-05,2]
[358946743,1745581260875,500.0,0.00037808,60]